[Event "Edmonton int."]
[Site "Edmonton CAN"]
[Date "2019.06.20"]
[Round "4.4"]
[White "Porper, Edward"]
[Black "Noritsyn, Nikolay"]
[Result "1-0"]
[ECO "D21"]
[WhiteElo "2382"]
[BlackElo "2508"]
[PlyCount "57"]
[EventDate "2019.06.19"]
[EventType "tourn"]
[EventRounds "9"]
[EventCountry "CAN"]
[TimeControl "1"]

1. d4 {[%emt 0:00:01]} d5 {[%emt 0:00:22]} 2. c4 {[%emt 0:00:10]} dxc4 {
[%emt 0:00:15]} 3. Nf3 {[%emt 0:00:02]} e6 {[%emt 0:00:17]} 4. Nc3 {
[%emt 0:00:22]} a6 {[%emt 0:02:39]} 5. e4 {[%emt 0:00:50]} b5 {[%emt 0:00:39]}
6. a4 {[%emt 0:00:52]} b4 {[%emt 0:03:19]} 7. Nb1 {[%emt 0:02:23]} Bb7 {
[%emt 0:01:02]} 8. Qc2 {[%emt 0:02:03]} Nf6 {[%emt 0:03:59]} 9. e5 {
[%emt 0:02:37]} Bxf3 {[%emt 0:06:09]} 10. gxf3 {[%emt 0:01:22]} Nd5 {
[%emt 0:03:25]} 11. Qxc4 {[%emt 0:01:06]} c5 {[%emt 0:01:34]} 12. Nd2 {
[%emt 0:09:32]} Nc6 {[%emt 0:10:52]} 13. Nb3 {[%emt 0:10:45]} Be7 {
[%emt 0:10:59]} 14. Rg1 {[%emt 0:09:30]} g6 {[%emt 0:05:02]} 15. Bh6 {
[%emt 0:01:21]} Nb6 {[%emt 0:11:31]} 16. Qd3 {[%emt 0:00:48]} c4 {
[%emt 0:02:24]} 17. Qe4 {[%emt 0:00:07]} Qd5 {[%emt 0:07:30]} 18. a5 {
[%emt 0:01:27]} cxb3 {[%emt 0:09:55]} 19. axb6 {[%emt 0:02:30]} Qxe4+ {
[%emt 0:00:14]} 20. fxe4 {[%emt 0:00:02]} Nxd4 {[%emt 0:00:07]} 21. O-O-O {
[%emt 0:00:28]} Nc6 {[%emt 0:03:59]} 22. Be3 {[%emt 0:03:21]} Na5 {
[%emt 0:02:01]} 23. Kb1 {[%emt 0:02:42]} Bd8 {[%emt 0:05:39]} 24. Be2 {
[%emt 0:02:01]} O-O {[%emt 0:00:50]} 25. Rd6 {[%emt 0:01:50]} Re8 {
[%emt 0:01:35]} 26. Rgd1 {[%emt 0:00:35]} Nb7 {[%emt 0:04:11]} 27. Rd7 {
[%emt 0:00:43]} Re7 {[%emt 0:00:17]} 28. Rxe7 {[%emt 0:00:23]} Bxe7 {
[%emt 0:00:04]} 29. Rd7 {[%emt 0:00:19]} 1-0

[Event "Edmonton int."]
[Site "Edmonton CAN"]
[Date "2019.06.20"]
[Round "4.5"]
[White "Zierk, Steven"]
[Black "Shabalov, Alexander"]
[Result "0-1"]
[ECO "B48"]
[WhiteElo "2490"]
[BlackElo "2528"]
[PlyCount "54"]
[EventDate "2019.06.19"]
[EventType "tourn"]
[EventRounds "9"]
[EventCountry "CAN"]
[TimeControl "1"]

1. e4 {[%emt 0:00:10]} c5 {[%emt 0:00:05]} 2. Nf3 {[%emt 0:00:09]} e6 {
[%emt 0:00:06]} 3. d4 {[%emt 0:01:42]} cxd4 {[%emt 0:00:06]} 4. Nxd4 {
[%emt 0:00:03]} Nc6 {[%emt 0:00:07]} 5. Nc3 {[%emt 0:00:14]} Qc7 {
[%emt 0:00:07]} 6. Be3 {[%emt 0:00:27]} a6 {[%emt 0:00:05]} 7. Qf3 {
[%emt 0:03:16]} Nf6 {[%emt 0:00:10]} 8. O-O-O {[%emt 0:02:02]} h5 {
[%emt 0:00:05]} 9. h4 {[%emt 0:13:16]} b5 {[%emt 0:00:48]} 10. Nxc6 {
[%emt 0:03:09]} Qxc6 {[%emt 0:02:06]} 11. Bd4 {[%emt 0:08:45]} b4 {
[%emt 0:25:40]} 12. Nd5 {[%emt 0:16:01]} exd5 {[%emt 0:02:00]} 13. exd5 {
[%emt 0:00:13]} Nxd5 {[%emt 0:01:13]} 14. Bc4 {[%emt 0:00:47]} Qxc4 {
[%emt 0:04:25]} 15. Rhe1+ {[%emt 0:00:14]} Ne7 {[%emt 0:16:31]} 16. Qxa8 {
[%emt 0:00:26]} Rh6 {[%emt 0:00:10]} 17. b3 {[%emt 0:03:58]} Qc6 {
[%emt 0:10:22]} 18. Qb8 {[%emt 0:02:29]} Re6 {[%emt 0:03:22]} 19. Be5 {
[%emt 0:01:48]} Qb7 {[%emt 0:06:02]} 20. Qxb7 {[%emt 0:02:30]} Bxb7 {
[%emt 0:00:05]} 21. Bd6 {[%emt 0:00:09]} Bxg2 {[%emt 0:02:24]} 22. Bxb4 {
[%emt 0:00:23]} Bc6 {[%emt 0:00:26]} 23. Rxe6 {[%emt 0:05:18]} fxe6 {
[%emt 0:00:05]} 24. Bd2 {[%emt 0:00:14]} Nf5 {[%emt 0:01:12]} 25. Bg5 {
[%emt 0:00:10]} Be7 {[%emt 0:03:01]} 26. Rg1 {[%emt 0:00:09]} Bf6 {
[%emt 0:03:44]} 27. Kd2 {[%emt 0:01:31]} Kf7 {[%emt 0:00:21]} 0-1

[Event "Edmonton int."]
[Site "Edmonton CAN"]
[Date "2019.06.20"]
[Round "5.1"]
[White "Shabalov, Alexander"]
[Black "Daggupati, Balaji"]
[Result "1-0"]
[ECO "D10"]
[WhiteElo "2528"]
[BlackElo "2331"]
[PlyCount "45"]
[EventDate "2019.06.19"]
[EventType "tourn"]
[EventRounds "9"]
[EventCountry "CAN"]
[TimeControl "1"]

1. d4 {[%emt 0:00:03]} d5 {[%emt 0:00:05]} 2. c4 {[%emt 0:00:04]} c6 {
[%emt 0:00:04]} 3. Nc3 {[%emt 0:00:05]} dxc4 {[%emt 0:00:05]} 4. e3 {
[%emt 0:00:04]} b5 {[%emt 0:00:05]} 5. a4 {[%emt 0:00:04]} b4 {[%emt 0:00:06]}
6. Ne4 {[%emt 0:00:04]} Qd5 {[%emt 0:00:06]} 7. Ng3 {[%emt 0:00:04]} Nf6 {
[%emt 0:00:06]} 8. Be2 {[%emt 0:00:05]} Ba6 {[%emt 0:03:23]} 9. e4 {
[%emt 0:02:40]} Nxe4 {[%emt 0:04:22]} 10. Bf3 {[%emt 0:00:44]} f5 {
[%emt 0:00:08]} 11. N1e2 {[%emt 0:00:25]} c3 {[%emt 0:10:04]} 12. O-O {
[%emt 0:07:03]} Qc4 {[%emt 0:04:41]} 13. Nxf5 {[%emt 0:10:27]} cxb2 {
[%emt 0:02:51]} 14. Bxb2 {[%emt 0:00:13]} Ng5 {[%emt 0:00:14]} 15. Bh5+ {
[%emt 0:15:54]} g6 {[%emt 0:01:33]} 16. Neg3 {[%emt 0:02:45]} gxh5 {
[%emt 0:31:25]} 17. Re1 {[%emt 0:06:19]} Kd8 {[%emt 0:10:03]} 18. d5 {
[%emt 0:06:36]} Rg8 {[%emt 0:03:15]} 19. dxc6+ {[%emt 0:04:46]} Kc8 {
[%emt 0:00:12]} 20. Rxe7 {[%emt 0:08:32]} Qf1+ {[%emt 0:03:25]} 21. Qxf1 {
[%emt 0:00:43]} Bxf1 {[%emt 0:00:05]} 22. Nd6+ {[%emt 0:00:28]} Kd8 {
[%emt 0:00:07]} 23. c7+ {[%emt 0:00:53]} 1-0

[Event "Edmonton int."]
[Site "Edmonton CAN"]
[Date "2019.06.20"]
[Round "5.2"]
[White "Noritsyn, Nikolay"]
[Black "Zierk, Steven"]
[Result "0-1"]
[ECO "C02"]
[WhiteElo "2508"]
[BlackElo "2490"]
[PlyCount "106"]
[EventDate "2019.06.19"]
[EventType "tourn"]
[EventRounds "9"]
[EventCountry "CAN"]
[TimeControl "1"]

1. e4 {[%emt 0:00:11]} e6 {[%emt 0:00:14]} 2. d4 {[%emt 0:00:12]} d5 {
[%emt 0:00:05]} 3. e5 {[%emt 0:00:19]} c5 {[%emt 0:00:05]} 4. c3 {
[%emt 0:00:05]} Nc6 {[%emt 0:00:03]} 5. Nf3 {[%emt 0:00:05]} Bd7 {
[%emt 0:00:55]} 6. a3 {[%emt 0:00:16]} c4 {[%emt 0:06:03]} 7. Be2 {
[%emt 0:00:25]} f6 {[%emt 0:01:05]} 8. O-O {[%emt 0:01:56]} fxe5 {
[%emt 0:05:15]} 9. Nxe5 {[%emt 0:03:51]} Nxe5 {[%emt 0:00:53]} 10. dxe5 {
[%emt 0:00:05]} Bc5 {[%emt 0:01:26]} 11. b3 {[%emt 0:08:40]} cxb3 {
[%emt 0:11:57]} 12. Nd2 {[%emt 0:02:38]} Ne7 {[%emt 0:06:12]} 13. Nxb3 {
[%emt 0:00:26]} Ba4 {[%emt 0:05:54]} 14. Bd3 {[%emt 0:10:18]} Bxb3 {
[%emt 0:10:34]} 15. Qxb3 {[%emt 0:00:06]} Qc7 {[%emt 0:00:55]} 16. Qa4+ {
[%emt 0:10:24]} Nc6 {[%emt 0:04:25]} 17. Qh4 {[%emt 0:13:40]} Qxe5 {
[%emt 0:07:50]} 18. Rb1 {[%emt 0:04:48]} Be7 {[%emt 0:08:04]} 19. Qg4 {
[%emt 0:05:10]} O-O {[%emt 0:02:58]} 20. Rxb7 {[%emt 0:01:06]} Rf7 {
[%emt 0:01:45]} 21. Qh3 {[%emt 0:04:43]} g6 {[%emt 0:01:00]} 22. Rb2 {
[%emt 0:00:30]} Qf6 {[%emt 0:07:07]} 23. Re2 {[%emt 0:00:22]} Ne5 {
[%emt 0:01:28]} 24. Ba6 {[%emt 0:06:36]} Bc5 {[%emt 0:01:24]} 25. Kh1 {
[%emt 0:08:16]} h5 {[%emt 0:00:44]} 26. Be3 {[%emt 0:04:18]} Bb6 {
[%emt 0:03:34]} 27. c4 {[%emt 0:06:58]} d4 {[%emt 0:01:26]} 28. Bd2 {
[%emt 0:00:47]} d3 {[%emt 0:01:32]} 29. Re4 {[%emt 0:00:12]} Ng4 {
[%emt 0:00:36]} 30. Rf4 {[%emt 0:01:07]} Nxf2+ {[%emt 0:01:44]} 31. R4xf2 {
[%emt 0:00:35]} Bxf2 {[%emt 0:00:12]} 32. c5 {[%emt 0:01:37]} Qf5 {
[%emt 0:04:34]} 33. Qxf5 {[%emt 0:00:36]} Rxf5 {[%emt 0:00:02]} 34. Bxd3 {
[%emt 0:00:06]} Bxc5 {[%emt 0:02:24]} 35. Bxf5 {[%emt 0:00:05]} gxf5 {
[%emt 0:00:02]} 36. a4 {[%emt 0:00:17]} Rd8 {[%emt 0:00:44]} 37. Bg5 {
[%emt 0:01:40]} Rd4 {[%emt 0:00:22]} 38. a5 {[%emt 0:01:30]} Bb4 {
[%emt 0:01:05]} 39. Be3 {[%emt 0:01:23]} Re4 {[%emt 0:01:48]} 40. Bxa7 {
[%emt 0:00:07]} Bxa5 {[%emt 0:00:00]} 41. g3 {[%emt 0:00:44]} Kf7 {
[%emt 0:01:00]} 42. Rb1 {[%emt 0:02:01]} Re2 {[%emt 0:01:12]} 43. Rb7+ {
[%emt 0:05:23]} Kg6 {[%emt 0:01:54]} 44. Bd4 {[%emt 0:06:14]} e5 {
[%emt 0:03:57]} 45. Bc5 {[%emt 0:01:06]} h4 {[%emt 0:01:22]} 46. Ra7 {
[%emt 0:07:17]} Be1 {[%emt 0:04:35]} 47. Ra3 {[%emt 0:01:47]} h3 {
[%emt 0:05:09]} 48. Kg1 {[%emt 0:02:51]} Rc2 {[%emt 0:01:11]} 49. Be3 {
[%emt 0:00:14]} Bf2+ {[%emt 0:04:28]} 50. Kf1 {[%emt 0:02:23]} Bxe3 {
[%emt 0:00:43]} 51. Rxe3 {[%emt 0:00:06]} Kf6 {[%emt 0:00:39]} 52. Kg1 {
[%emt 0:00:12]} Rc1+ {[%emt 0:00:16]} 53. Kf2 {[%emt 0:00:05]} Rh1 {
[%emt 0:00:10]} 0-1

[Event "Edmonton int."]
[Site "Edmonton CAN"]
[Date "2019.06.20"]
[Round "5.3"]
[White "Banerjee, Bitan"]
[Black "Porper, Edward"]
[Result "1/2-1/2"]
[ECO "D46"]
[WhiteElo "2427"]
[BlackElo "2382"]
[PlyCount "60"]
[EventDate "2019.06.19"]
[EventType "tourn"]
[EventRounds "9"]
[EventCountry "CAN"]
[TimeControl "1"]

1. d4 {[%emt 0:00:04]} d5 {[%emt 0:00:05]} 2. c4 {[%emt 0:00:12]} c6 {
[%emt 0:00:04]} 3. Nf3 {[%emt 0:00:04]} Nf6 {[%emt 0:00:06]} 4. Nc3 {
[%emt 0:00:09]} e6 {[%emt 0:00:11]} 5. e3 {[%emt 0:00:17]} Nbd7 {[%emt 0:00:31]
} 6. Qc2 {[%emt 0:00:09]} Bd6 {[%emt 0:00:27]} 7. Bd3 {[%emt 0:00:08]} O-O {
[%emt 0:02:19]} 8. O-O {[%emt 0:00:07]} dxc4 {[%emt 0:01:36]} 9. Bxc4 {
[%emt 0:00:05]} Qe7 {[%emt 0:01:34]} 10. Rd1 {[%emt 0:01:52]} a6 {
[%emt 0:04:22]} 11. a3 {[%emt 0:01:22]} h6 {[%emt 0:04:54]} 12. Be2 {
[%emt 0:23:51]} b5 {[%emt 0:10:16]} 13. h3 {[%emt 0:07:15]} c5 {[%emt 0:05:39]}
14. dxc5 {[%emt 0:04:04]} Bxc5 {[%emt 0:00:33]} 15. Ne4 {[%emt 0:06:30]} Bb7 {
[%emt 0:01:22]} 16. Nxf6+ {[%emt 0:26:37]} Nxf6 {[%emt 0:01:16]} 17. Bd3 {
[%emt 0:00:03]} Rac8 {[%emt 0:01:33]} 18. Qe2 {[%emt 0:00:49]} Ne4 {
[%emt 0:02:30]} 19. Nd2 {[%emt 0:01:33]} Nxd2 {[%emt 0:03:05]} 20. Bxd2 {
[%emt 0:00:04]} Rfd8 {[%emt 0:01:15]} 21. Rac1 {[%emt 0:10:29]} Bb6 {
[%emt 0:07:10]} 22. Rxc8 {[%emt 0:01:20]} Rxc8 {[%emt 0:00:33]} 23. Qg4 {
[%emt 0:10:09]} Qg5 {[%emt 0:06:01]} 24. Qxg5 {[%emt 0:00:52]} hxg5 {
[%emt 0:00:16]} 25. Bc3 {[%emt 0:00:47]} Rd8 {[%emt 0:00:47]} 26. Bc2 {
[%emt 0:00:54]} Rxd1+ {[%emt 0:00:13]} 27. Bxd1 {[%emt 0:00:04]} Bd5 {
[%emt 0:00:54]} 28. Be2 {[%emt 0:00:39]} f6 {[%emt 0:01:38]} 29. Bd3 {
[%emt 0:00:15]} Kf7 {[%emt 0:00:44]} 30. Kf1 {[%emt 0:00:27]} e5 {
[%emt 0:00:58]} 1/2-1/2

[Event "Edmonton int."]
[Site "Edmonton CAN"]
[Date "2019.06.20"]
[Round "5.4"]
[White "Paragua, Mark"]
[Black "Findlay, Ian"]
[Result "1-0"]
[ECO "A45"]
[WhiteElo "2501"]
[BlackElo "2206"]
[PlyCount "63"]
[EventDate "2019.06.19"]
[EventType "tourn"]
[EventRounds "9"]
[EventCountry "CAN"]
[TimeControl "1"]

1. d4 {[%emt 0:00:14]} Nf6 {[%emt 0:00:09]} 2. Bg5 {[%emt 0:00:13]} Ne4 {
[%emt 0:00:09]} 3. Bf4 {[%emt 0:00:07]} d5 {[%emt 0:00:06]} 4. e3 {
[%emt 0:00:08]} c5 {[%emt 0:00:16]} 5. Bd3 {[%emt 0:00:10]} cxd4 {
[%emt 0:00:06]} 6. Bxe4 {[%emt 0:00:52]} dxe4 {[%emt 0:00:12]} 7. Qxd4 {
[%emt 0:00:08]} Qxd4 {[%emt 0:02:01]} 8. exd4 {[%emt 0:00:51]} Nc6 {
[%emt 0:04:37]} 9. c3 {[%emt 0:01:35]} Bf5 {[%emt 0:40:45]} 10. Nd2 {
[%emt 0:04:18]} O-O-O {[%emt 0:00:23]} 11. Ne2 {[%emt 0:03:20]} Bg6 {
[%emt 0:02:35]} 12. Ng3 {[%emt 0:05:10]} f5 {[%emt 0:00:15]} 13. f3 {
[%emt 0:00:46]} exf3 {[%emt 0:05:41]} 14. Nxf3 {[%emt 0:02:25]} e6 {
[%emt 0:00:07]} 15. O-O-O {[%emt 0:04:36]} Bd6 {[%emt 0:05:29]} 16. Bxd6 {
[%emt 0:04:47]} Rxd6 {[%emt 0:00:03]} 17. Rhe1 {[%emt 0:00:11]} h6 {
[%emt 0:00:40]} 18. h4 {[%emt 0:02:34]} Rhd8 {[%emt 0:04:20]} 19. Rd2 {
[%emt 0:06:48]} Bf7 {[%emt 0:01:09]} 20. Rde2 {[%emt 0:00:55]} g6 {
[%emt 0:02:55]} 21. Nh1 {[%emt 0:02:24]} Rg8 {[%emt 0:01:29]} 22. Nf2 {
[%emt 0:00:56]} g5 {[%emt 0:00:36]} 23. hxg5 {[%emt 0:00:52]} hxg5 {
[%emt 0:00:02]} 24. g4 {[%emt 0:00:24]} fxg4 {[%emt 0:00:49]} 25. Nxg4 {
[%emt 0:00:12]} Bh5 {[%emt 0:01:53]} 26. Rg1 {[%emt 0:03:07]} Nd8 {
[%emt 0:03:10]} 27. Nfe5 {[%emt 0:03:55]} Nc6 {[%emt 0:07:07]} 28. Nc4 {
[%emt 0:01:44]} Rdd8 {[%emt 0:00:50]} 29. Rxe6 {[%emt 0:00:38]} Bxg4 {
[%emt 0:06:00]} 30. Rxg4 {[%emt 0:00:06]} Rd5 {[%emt 0:02:08]} 31. Rd6 {
[%emt 0:01:30]} Rb5 {[%emt 0:02:08]} 32. a4 {[%emt 0:00:09]} 1-0

[Event "Edmonton int."]
[Site "Edmonton CAN"]
[Date "2019.06.20"]
[Round "5.5"]
[White "Balakrishnan, Praveen"]
[Black "Dave, Bhavik"]
[Result "1-0"]
[ECO "E09"]
[WhiteElo "2428"]
[BlackElo "1818"]
[PlyCount "85"]
[EventDate "2019.06.19"]
[EventType "tourn"]
[EventRounds "9"]
[EventCountry "CAN"]
[TimeControl "1"]

1. c4 {[%emt 0:01:02]} Nf6 {[%emt 0:00:02]} 2. g3 {[%emt 0:00:02]} e6 {
[%emt 0:00:02]} 3. Bg2 {[%emt 0:00:30]} d5 {[%emt 0:00:01]} 4. Nf3 {
[%emt 0:00:02]} c6 {[%emt 0:00:02]} 5. O-O {[%emt 0:00:02]} Nbd7 {
[%emt 0:00:03]} 6. d4 Be7 {[%emt 0:00:04]} 7. Qc2 {[%emt 0:00:03]} O-O {
[%emt 0:00:03]} 8. Nbd2 {[%emt 0:00:03]} b6 {[%emt 0:00:01]} 9. e4 {
[%emt 0:00:07]} Nxe4 {[%emt 0:00:02]} 10. Nxe4 {[%emt 0:00:02]} dxe4 {
[%emt 0:00:03]} 11. Qxe4 {[%emt 0:00:03]} Bb7 {[%emt 0:00:04]} 12. Rd1 {
[%emt 0:00:02]} Nf6 {[%emt 0:00:03]} 13. Qc2 {[%emt 0:00:03]} Qc8 {
[%emt 0:00:03]} 14. c5 {[%emt 0:00:01]} Rd8 {[%emt 0:00:03]} 15. Bf4 {
[%emt 0:00:02]} Nd5 {[%emt 0:00:03]} 16. Bg5 {[%emt 0:00:01]} Qc7 {
[%emt 0:00:04]} 17. Bxe7 {[%emt 0:00:02]} Qxe7 {[%emt 0:00:03]} 18. Nd2 {
[%emt 0:00:03]} Nf6 {[%emt 0:00:03]} 19. Nb3 {[%emt 0:00:02]} Nd5 {
[%emt 0:00:06]} 20. Rac1 {[%emt 0:00:02]} Nb4 {[%emt 0:00:06]} 21. Qd2 {
[%emt 0:00:04]} Nd5 {[%emt 0:00:01]} 22. Qe1 {[%emt 0:00:06]} Rac8 {
[%emt 0:00:02]} 23. Nd2 {[%emt 0:00:02]} Nf6 {[%emt 0:00:13]} 24. Nf3 {
[%emt 0:00:04]} Nd7 {[%emt 0:00:03]} 25. Qe3 {[%emt 0:00:03]} Ra8 26. Nd2 Nf6
27. Nc4 b5 28. Ne5 Rdc8 29. a4 a6 30. Ra1 Qe8 31. h4 h6 32. g4 Nd7 33. g5 hxg5
34. hxg5 Nxe5 35. dxe5 Rd8 36. Rd6 Rxd6 37. exd6 Bc8 38. axb5 Bb7 39. b6 Qd8
40. Ra4 Qd7 41. Rh4 f6 42. g6 e5 43. Qb3+ 1-0

[Event "Edmonton int."]
[Site "Edmonton CAN"]
[Date "2019.06.21"]
[Round "6.1"]
[White "Daggupati, Balaji"]
[Black "Dave, Bhavik"]
[Result "1-0"]
[ECO "C80"]
[WhiteElo "2331"]
[BlackElo "1818"]
[PlyCount "75"]
[EventDate "2019.06.19"]
[EventType "tourn"]
[EventRounds "9"]
[EventCountry "CAN"]
[TimeControl "1"]

1. e4 {[%emt 0:00:03]} e5 {[%emt 0:00:11]} 2. Nf3 {[%emt 0:00:06]} Nc6 {
[%emt 0:00:06]} 3. Bb5 {[%emt 0:00:06]} a6 {[%emt 0:00:07]} 4. Ba4 {
[%emt 0:00:04]} Nf6 {[%emt 0:00:07]} 5. d4 {[%emt 0:00:05]} exd4 {
[%emt 0:15:26]} 6. O-O {[%emt 0:00:46]} Nxe4 {[%emt 0:27:30]} 7. Re1 {
[%emt 0:01:05]} d5 {[%emt 0:00:22]} 8. Nxd4 {[%emt 0:00:45]} Be7 {
[%emt 0:12:08]} 9. Nxc6 {[%emt 0:00:47]} bxc6 {[%emt 0:00:10]} 10. Bxc6+ {
[%emt 0:00:06]} Bd7 {[%emt 0:00:03]} 11. Bxd5 {[%emt 0:01:18]} Nd6 {
[%emt 0:01:09]} 12. Bxa8 {[%emt 0:01:10]} Qxa8 {[%emt 0:00:27]} 13. Nc3 {
[%emt 0:00:15]} Be6 {[%emt 0:02:00]} 14. Bf4 {[%emt 0:00:47]} O-O {
[%emt 0:00:33]} 15. Bxd6 {[%emt 0:00:06]} Bxd6 {[%emt 0:00:55]} 16. Ne4 {
[%emt 0:00:11]} Bb4 {[%emt 0:02:46]} 17. c3 {[%emt 0:00:07]} Be7 {
[%emt 0:00:13]} 18. Qh5 {[%emt 0:00:12]} Qb7 {[%emt 0:11:09]} 19. b3 {
[%emt 0:00:51]} Qb6 {[%emt 0:02:42]} 20. Ng5 {[%emt 0:00:18]} h6 {
[%emt 0:00:31]} 21. Nxe6 {[%emt 0:00:39]} fxe6 {[%emt 0:00:12]} 22. Qe2 {
[%emt 0:00:12]} Rf6 {[%emt 0:01:46]} 23. Kh1 {[%emt 0:00:32]} Bc5 {
[%emt 0:00:28]} 24. f3 {[%emt 0:00:06]} h5 {[%emt 0:02:06]} 25. Rad1 {
[%emt 0:00:06]} Bd6 {[%emt 0:01:40]} 26. Qc4 {[%emt 0:00:06]} Kf7 {
[%emt 0:02:06]} 27. Rd4 {[%emt 0:01:31]} g5 {[%emt 0:01:48]} 28. Qd3 {
[%emt 0:00:57]} Kg7 {[%emt 0:01:52]} 29. Rde4 {[%emt 0:00:18]} e5 {
[%emt 0:00:57]} 30. Rxe5 {[%emt 0:00:13]} Bxe5 {[%emt 0:01:45]} 31. Rxe5 {
[%emt 0:00:06]} Qf2 {[%emt 0:03:07]} 32. Re7+ {[%emt 0:01:18]} Rf7 {
[%emt 0:00:22]} 33. Qd4+ {[%emt 0:00:07]} Qxd4 {[%emt 0:00:04]} 34. Rxf7+ {
[%emt 0:00:05]} Kxf7 {[%emt 0:00:42]} 35. cxd4 {[%emt 0:00:04]} Ke6 {
[%emt 0:00:45]} 36. h4 {[%emt 0:00:06]} Kf5 {[%emt 0:03:09]} 37. hxg5 {
[%emt 0:00:21]} Kxg5 {[%emt 0:00:21]} 38. Kh2 {[%emt 0:00:07]} 1-0

[Event "Edmonton int."]
[Site "Edmonton CAN"]
[Date "2019.06.21"]
[Round "6.2"]
[White "Findlay, Ian"]
[Black "Balakrishnan, Praveen"]
[Result "1/2-1/2"]
[ECO "B33"]
[WhiteElo "2206"]
[BlackElo "2428"]
[PlyCount "98"]
[EventDate "2019.06.19"]
[EventType "tourn"]
[EventRounds "9"]
[EventCountry "CAN"]
[TimeControl "1"]

1. e4 {[%emt 0:00:00]} c5 {[%emt 0:00:06]} 2. Nf3 {[%emt 0:00:06]} Nc6 {
[%emt 0:00:04]} 3. d4 {[%emt 0:00:06]} cxd4 {[%emt 0:00:05]} 4. Nxd4 {
[%emt 0:00:06]} Nf6 {[%emt 0:00:05]} 5. Nc3 {[%emt 0:00:07]} e5 {[%emt 0:00:11]
} 6. Ndb5 {[%emt 0:00:19]} d6 {[%emt 0:00:06]} 7. Bg5 {[%emt 0:00:29]} a6 {
[%emt 0:00:06]} 8. Na3 {[%emt 0:00:05]} b5 {[%emt 0:00:04]} 9. Nd5 {
[%emt 0:00:14]} Be7 {[%emt 0:00:06]} 10. Bxf6 {[%emt 0:00:09]} Bxf6 {
[%emt 0:00:07]} 11. c3 {[%emt 0:00:07]} O-O {[%emt 0:00:44]} 12. Nc2 {
[%emt 0:00:13]} Rb8 {[%emt 0:00:18]} 13. h4 {[%emt 0:01:56]} g6 {[%emt 0:00:40]
} 14. h5 {[%emt 0:02:05]} Bg5 {[%emt 0:01:28]} 15. g3 {[%emt 0:04:07]} a5 {
[%emt 0:13:05]} 16. a3 {[%emt 0:05:54]} Be6 {[%emt 0:17:43]} 17. Bg2 {
[%emt 0:07:10]} Ne7 {[%emt 0:09:05]} 18. Nce3 {[%emt 0:02:58]} Kg7 {
[%emt 0:10:46]} 19. Qd3 {[%emt 0:11:26]} Nxd5 {[%emt 0:07:59]} 20. Nxd5 {
[%emt 0:00:31]} f5 {[%emt 0:02:39]} 21. Rd1 {[%emt 0:03:35]} Qd7 {
[%emt 0:07:34]} 22. hxg6 {[%emt 0:09:56]} hxg6 {[%emt 0:01:28]} 23. exf5 {
[%emt 0:00:09]} Bxf5 {[%emt 0:04:38]} 24. Be4 {[%emt 0:02:54]} Qa7 {
[%emt 0:00:54]} 25. O-O {[%emt 0:04:25]} Bh3 {[%emt 0:07:32]} 26. Bg2 {
[%emt 0:00:16]} Bf5 {[%emt 0:06:28]} 27. Be4 {[%emt 0:00:16]} Be6 {
[%emt 0:02:53]} 28. Ne3 {[%emt 0:03:49]} Rxf2 {[%emt 0:05:12]} 29. Kxf2 {
[%emt 0:03:26]} Bc4 {[%emt 0:00:09]} 30. Qd2 {[%emt 0:01:24]} Rf8+ {
[%emt 0:01:55]} 31. Kg2 {[%emt 0:00:21]} Bxf1+ {[%emt 0:01:06]} 32. Rxf1 {
[%emt 0:00:05]} Rxf1 {[%emt 0:00:07]} 33. Kxf1 {[%emt 0:00:11]} Qxe3 {
[%emt 0:01:04]} 34. Qxe3 {[%emt 0:00:20]} Bxe3 {[%emt 0:00:04]} 35. Ke2 {
[%emt 0:04:16]} Bc1 {[%emt 0:00:33]} 36. b4 {[%emt 0:00:08]} Bxa3 {
[%emt 0:01:05]} 37. bxa5 {[%emt 0:00:08]} Bc5 {[%emt 0:00:03]} 38. a6 {
[%emt 0:01:50]} Kf6 {[%emt 0:00:10]} 39. Bd3 {[%emt 0:00:55]} Kg5 {
[%emt 0:01:10]} 40. Kf3 {[%emt 0:00:17]} d5 {[%emt 0:00:08]} 41. Bxb5 {
[%emt 0:00:28]} e4+ {[%emt 0:00:29]} 42. Kg2 {[%emt 0:05:00]} Kf5 {
[%emt 0:00:29]} 43. Bc6 {[%emt 0:01:58]} Ke5 {[%emt 0:00:08]} 44. Kf1 {
[%emt 0:01:02]} d4 {[%emt 0:02:02]} 45. cxd4+ {[%emt 0:00:11]} Kxd4 {
[%emt 0:00:08]} 46. Ke2 {[%emt 0:00:10]} g5 {[%emt 0:00:07]} 47. g4 {
[%emt 0:00:05]} Ke5 {[%emt 0:00:16]} 48. Bd7 {[%emt 0:00:17]} Kf4 {
[%emt 0:00:13]} 49. Bf5 {[%emt 0:00:11]} Ba7 {[%emt 0:00:17]} 1/2-1/2

[Event "Edmonton int."]
[Site "Edmonton CAN"]
[Date "2019.06.21"]
[Round "6.3"]
[White "Porper, Edward"]
[Black "Paragua, Mark"]
[Result "0-1"]
[ECO "D93"]
[WhiteElo "2382"]
[BlackElo "2501"]
[PlyCount "58"]
[EventDate "2019.06.19"]
[EventType "tourn"]
[EventRounds "9"]
[EventCountry "CAN"]
[TimeControl "1"]

1. d4 {[%emt 0:00:01]} Nf6 {[%emt 0:00:10]} 2. c4 {[%emt 0:00:02]} g6 {
[%emt 0:00:09]} 3. Nc3 {[%emt 0:00:03]} d5 {[%emt 0:00:12]} 4. Bf4 {
[%emt 0:00:03]} Bg7 {[%emt 0:00:23]} 5. e3 {[%emt 0:00:02]} c6 {[%emt 0:01:48]}
6. Nf3 {[%emt 0:00:27]} O-O {[%emt 0:00:15]} 7. h3 {[%emt 0:00:44]} Qa5 {
[%emt 0:02:17]} 8. Nd2 {[%emt 0:04:17]} Be6 {[%emt 0:02:56]} 9. Qb3 {
[%emt 0:04:13]} b6 {[%emt 0:10:37]} 10. Be2 {[%emt 0:04:12]} Rd8 {
[%emt 0:06:54]} 11. O-O {[%emt 0:12:01]} c5 {[%emt 0:03:02]} 12. dxc5 {
[%emt 0:09:56]} Qxc5 {[%emt 0:11:29]} 13. Qb5 {[%emt 0:02:52]} Nc6 {
[%emt 0:05:39]} 14. Qxc5 {[%emt 0:06:42]} bxc5 {[%emt 0:00:15]} 15. Bf3 {
[%emt 0:06:31]} Nb4 {[%emt 0:03:13]} 16. Bg5 {[%emt 0:08:11]} Rab8 {
[%emt 0:03:18]} 17. cxd5 {[%emt 0:07:36]} Nfxd5 {[%emt 0:04:04]} 18. Nxd5 {
[%emt 0:01:34]} Nxd5 {[%emt 0:00:15]} 19. Ne4 {[%emt 0:03:27]} h6 {
[%emt 0:01:41]} 20. Bh4 {[%emt 0:00:12]} c4 {[%emt 0:00:47]} 21. Nc5 {
[%emt 0:06:00]} Rxb2 {[%emt 0:03:56]} 22. Rad1 {[%emt 0:02:23]} g5 {
[%emt 0:04:11]} 23. Nxe6 {[%emt 0:00:49]} fxe6 {[%emt 0:00:08]} 24. e4 {
[%emt 0:00:22]} gxh4 {[%emt 0:01:51]} 25. exd5 {[%emt 0:00:01]} c3 {
[%emt 0:02:18]} 26. Be4 {[%emt 0:01:28]} exd5 {[%emt 0:00:39]} 27. Rxd5 {
[%emt 0:00:30]} Rxd5 {[%emt 0:00:57]} 28. Bxd5+ {[%emt 0:00:02]} Kh8 {
[%emt 0:00:11]} 29. Bb3 {[%emt 0:02:58]} Bd4 {[%emt 0:00:36]} 0-1